[Event "41st BAN National Women Chess-ch 2022"]
[Site "Dhaka"]
[Date "2022.11.28"]
[Round "11.6"]
[White "Kazi Zarin, Tasnim"]
[Black "Warsia, Khusbu"]
[Result "1-0"]
[ECO "B30"]
[WhiteElo "1860"]
[BlackElo "1540"]
[Annotator "NA RC COMBH"]
[PlyCount "102"]
[EventDate "2022.11.17"]
[EventCountry "BAN"]
[SourceTitle "playchess.com"]
[Source "ChessBase"]
[SourceQuality "1"]
[TimeControl "40/5400+30:1800+30"]

{[%evp 17,83,38,37,-45,45,-8,43,30,56,33,47,43,58,50,65,22,62,53,79,60,61,30,48,44,33,0,68,0,156,125,116,100,126,129,125,133,258,222,203,244,297,284,271,256,245,151,226,173,215,160,168,189,247,106,91,120,91,106,102,98,102,120,380,329,120,342,270,391]} 1. e4 {[%emt 0:00:06]} c5 {[%emt 0:00:13]} 2. Nf3 {[%emt 0:00:13]} Nc6 {[%emt 0:00:05]} 3. Nc3 {[%emt 0:00:05]} e5 {[%emt 0:00:37]} 4. Bc4 {[%emt 0:00:06]} Be7 {[%emt 0:00:15]} 5. d3 {[%emt 0:00:06]} Nf6 {[%emt 0:00:13]} 6. Nd2 {[%emt 0:00:11]} a6 {[%emt 0:00:31]} 7. a4 {[%emt 0:00:06]} Nd4 {[%emt 1:32:06]} 8. Nd5 {[%emt 0:03:12]} O-O {[%emt 0:00:30]} 9. Nxe7+ {[%emt 0:06:13]} Qxe7 {[%emt 0:00:00]} 10. Nf1 {[%emt 0:00:30]} ({White should play} 10. c3 $14 Nc6 11. Bd5) 10... Rb8 {[%emt 0:00:00]} (10... d5 $1 $11 11. exd5 Bg4) 11. a5 {[%emt 0:03:23]} (11. Bg5 $14) 11... d6 {[%emt 0:00:00]} (11... d5 $1 $11 12. Bxd5 Nxd5 13. exd5 e4) 12. Ne3 {[%emt 0:07:46]} Be6 {[%emt 0:00:00]} 13. c3 {[%emt 0:00:39]} Bxc4 {[%emt 0:00:00]} 14. dxc4 {[%emt 0:02:31]} Ne6 {[%emt 0:00:00]} 15. f3 {[%emt 0:12:03]} g6 {[%emt 0:00:00]} 16. h4 {[%emt 0:05:46]} (16. O-O $16) 16... Nf4 {[%emt 0:04:00]} (16... b6 $11 {is more appropriate.}) 17. g3 {[%emt 0:01:00]} N4h5 {[%emt 0:00:00]} 18. Kf2 {[%emt 0:09:10]} Qe6 {[%emt 0:00:00]} 19. Qe2 {[%emt 0:04:43]} (19. Ra3 $16) 19... Ne8 {[%emt 0:00:00]} (19... Nd7 $1 $11) 20. g4 {[%emt 0:04:33]} Nf4 {[%emt 0:02:00]} 21. Qf1 {[%emt 0:00:05]} (21. Qc2 $14) 21... Ng7 {[%emt 0:00:00]} ({Black should try} 21... h5 $11) 22. Nd5 {[%emt 0:02:24]} (22. h5 $1 $14 {might be stronger.}) 22... f5 $2 {[%emt 0:00:00]} (22... Nxd5 $11 23. cxd5 Qe7) 23. Nxf4 {[%emt 0:07:51]} exf4 {[%emt 0:00:00]} 24. exf5 {[%emt 0:00:17]} gxf5 {[%emt 0:00:00] [#]} 25. g5 $1 {[%emt 0:00:33]} Nh5 {[%emt 0:00:00] [#]} 26. Qd3 $1 {[%emt 0:00:56]} Rbd8 {[%emt 0:00:00]} (26... Rbe8 $142) 27. Re1 {[%emt 0:01:08]} Qf7 {[%emt 0:00:00] [#]} 28. Qd5 $1 {[%emt 0:00:21]} Qxd5 {[%emt 0:00:00]} 29. cxd5 {[%emt 0:00:04]} Rfe8 {[%emt 0:00:00]} 30. Bd2 {[%emt 0:00:36]} c4 {[%emt 0:00:00]} 31. Ra4 {[%emt 0:08:48]} (31. Rxe8+ $18 {and White stays clearly on top.} Rxe8 32. b3) 31... Rxe1 {[%emt 0:00:00]} (31... Re5 {keeps fighting.}) 32. Kxe1 {[%emt 0:00:48]} ({Don't do} 32. Bxe1 Rc8) 32... Rc8 $18 {[%emt 0:00:00]} 33. Rb4 {[%emt 0:01:45]} Rc5 {[%emt 0:00:00]} 34. Rxb7 {[%emt 0:00:05]} Rxd5 {[%emt 0:00:00]} 35. Rc7 {[%emt 0:01:05]} (35. b4 $18 {and White stays clearly on top.} cxb3 36. c4) 35... Rc5 {[%emt 0:00:00]} 36. Rxc5 {[%emt 0:00:21]} dxc5 {[%emt 0:00:00]} 37. Kd1 {[%emt 0:00:29]} Kf7 {[%emt 0:00:00]} 38. Kc2 {[%emt 0:00:29]} Ke6 {[%emt 0:00:00]} 39. b4 {[%emt 0:03:40]} Kd6 $2 {[%emt 0:00:00]} (39... cxb3+ $16 {was worth a try.} 40. Kxb3 Kd5) 40. Kb2 {[%emt 0:01:33]} Kc6 {[%emt 0:00:00]} (40... Kd5 $18 41. Ka3 Kd6) 41. Bc1 {[%emt 0:30:15]} Kb5 {[%emt 0:00:00] [#]} 42. Ka3 $1 {[%emt 0:00:06]} cxb4+ {[%emt 0:00:00]} 43. cxb4 {[%emt 0:00:11]} c3 {[%emt 0:00:00]} 44. Kb3 {[%emt 0:00:39]} Ng3 {[%emt 0:00:00]} 45. Bxf4 {[%emt 0:02:00]} Ne2 {[%emt 0:00:00]} 46. Be3 {[%emt 0:05:05]} f4 {[%emt 0:00:00]} 47. Bf2 {[%emt 0:00:02]} Kc6 {[%emt 0:00:00]} 48. Kc2 {[%emt 0:00:25]} Kd5 {[%emt 0:00:00]} 49. Kd3 {[%emt 0:01:56]} Kc6 {[%emt 0:00:00]} 50. Kxe2 {[%emt 0:00:31]} c2 {[%emt 0:00:00]} 51. Kd2 {[%emt 0:09:10]} Kd5 {[%emt 0:45:30]} 1-0